bitfinex/quotes_BTCUSD_20240818
["timestamp","ask_amount","ask_price","bid_price","bid_amount"]
[1723997156278,1.12456568,60025.0,60024.0,0.0009075]
[1723997156524,1.12456568,60025.0,60024.0,0.0059075]
[1723997156996,1.12456568,60025.0,60024.0,0.0009075]
[1723997157205,1.12856568,60025.0,60024.0,0.0009075]
[1723997157627,1.046651,60025.0,60024.0,0.0009075]
[1723997157836,1.043651,60025.0,60024.0,0.0009075]
[1723997158063,1.047651,60025.0,60024.0,0.0009075]
[1723997158276,1.049651,60025.0,60024.0,0.0009075]
[1723997159097,1.047651,60025.0,60024.0,0.0009075]
[1723997159332,1.049651,60025.0,60024.0,0.0009075]
[1723997159562,1.045651,60025.0,60024.0,0.0009075]
[1723997159773,1.049651,60025.0,60024.0,0.0009075]
[1723997160018,1.411274,60025.0,60024.0,0.0009075]
[1723997160842,1.36079635,60025.0,60024.0,0.0009075]
[1723997161049,1.36179635,60025.0,60024.0,0.0009075]
[1723997161251,1.36079635,60025.0,60024.0,0.0009075]
[1723997163181,1.049651,60025.0,60024.0,0.0009075]
[1723997164555,1.049651,60025.0,60024.0,0.0009075]
[1723997165392,0.968851,60025.0,60024.0,0.0009075]
[1723997165609,1.049651,60025.0,60024.0,0.0009075]
[1723997166465,1.045651,60025.0,60024.0,0.0009075]
[1723997166671,1.043651,60025.0,60024.0,0.0009075]
[1723997166879,1.046651,60025.0,60024.0,0.0009075]
[1723997167296,1.043651,60025.0,60024.0,0.0009075]
[1723997167705,1.046651,60025.0,60024.0,0.0009075]
[1723997168353,1.048651,60025.0,60024.0,0.0009075]
[1723997172643,0.815415,60025.0,60024.0,0.0009075]
[1723997173367,0.810415,60025.0,60024.0,0.0009075]
[1723997173623,0.811415,60025.0,60024.0,0.0009075]
[1723997173834,0.813415,60025.0,60024.0,0.0009075]
[1723997174242,0.811415,60025.0,60024.0,0.0009075]
[1723997174862,0.810415,60025.0,60024.0,0.0009075]
[1723997175271,0.810415,60025.0,60024.0,0.0019075]
[1723997176099,1.043651,60025.0,60024.0,0.0019075]
[1723997177414,1.046651,60025.0,60024.0,0.0019075]
[1723997177847,1.12156333,60025.0,60024.0,0.0019075]
[1723997178258,1.12456333,60025.0,60024.0,0.0019075]
[1723997178501,1.12456333,60025.0,60024.0,0.0009075]
[1723997179334,1.62636333,60025.0,60024.0,0.0009075]
[1723997179739,1.62436333,60025.0,60024.0,0.0009075]
[1723997180179,1.62636333,60025.0,60024.0,0.0009075]
[1723997184050,2.05333566,60025.0,60024.0,0.0009075]
[1723997184256,2.41357166,60025.0,60024.0,0.0009075]
[1723997184694,2.41357166,60025.0,60016.0,0.0009075]
[1723997184695,1.221701,60017.0,60016.0,0.0009075]
[1723997184960,1.90121333,60017.0,60016.0,0.0009075]
[1723997185194,2.17176787,60017.0,60016.0,0.0009075]
[1723997185417,2.22165533,60017.0,60016.0,0.0009075]
[1723997185645,1.079877,60007.0,59989.0,0.57827509]
[1723997185892,0.116684,59991.0,59990.0,0.02049084]
[1723997186158,0.116684,59991.0,59989.0,0.57827509]
[1723997186159,0.116686,59990.0,59989.0,0.57827509]
[1723997186383,0.116686,59990.0,59989.0,0.0665]
[1723997186880,0.233366,59992.0,59989.0,0.0665]
[1723997186881,0.116683,59992.0,59989.0,0.0665]
[1723997187125,0.116684,59991.0,59989.0,0.0665]
[1723997187567,0.233359,59994.0,59989.0,0.0665]
[1723997187568,0.116686,59990.0,59989.0,0.0665]
[1723997188593,0.351058,59990.0,59989.0,0.0725]
[1723997189768,0.351058,59990.0,59989.0,0.006]
[1723997189974,0.11669,59988.0,59987.0,0.0665]
[1723997190386,0.35007,59988.0,59987.0,0.0665]
[1723997191113,0.35107,59988.0,59987.0,0.0705]
[1723997191695,0.35107,59988.0,59987.0,0.0665]
[1723997191696,0.35007,59988.0,59987.0,0.0665]
[1723997191898,0.35007,59988.0,59984.0,0.0674075]
[1723997191899,0.23438,59988.0,59984.0,0.0674075]
[1723997192107,0.116694,59986.0,59984.0,0.0674075]
[1723997192542,0.001,59988.0,59984.0,0.0674075]
[1723997192748,0.001,59988.0,59985.0,0.0797]
[1723997192951,0.002,59988.0,59987.0,0.013]
[1723997193162,0.002,59988.0,59986.0,0.0665]
[1723997193163,0.11769,59988.0,59986.0,0.0665]
[1723997193479,0.116691,59987.0,59986.0,0.0665]
[1723997194621,0.583457,59987.0,59986.0,0.0665]
[1723997194849,0.584457,59987.0,59986.0,0.012]
[1723997195353,1.084257,59987.0,59986.0,0.012]
[1723997196295,1.085257,59987.0,59986.0,0.026]
[1723997196525,1.5426431,59987.0,59986.0,0.026]
[1723997197452,1.39574,59987.0,59986.0,0.012]
[1723997197686,0.583477,59985.0,59984.0,0.0009075]
[1723997197905,1.083277,59985.0,59984.0,0.0009075]
[1723997198785,1.083277,59985.0,59984.0,0.0089075]
[1723997198990,1.084277,59985.0,59984.0,0.0089075]
[1723997199424,1.77817023,59985.0,59984.0,0.0189075]
[1723997199627,1.87817023,59985.0,59984.0,0.0189075]
[1723997200045,1.87917023,59985.0,59984.0,0.0189075]
[1723997200261,1.90117023,59985.0,59984.0,0.0009075]
[1723997200495,1.90017023,59985.0,59984.0,0.0009075]
[1723997200695,1.90017023,59985.0,59984.0,0.0029075]
[1723997200696,1.92017023,59985.0,59984.0,0.0029075]
[1723997200872,1.95980464,59985.0,59984.0,0.0019075]
[1723997201124,1.95980464,59985.0,59984.0,0.0009075]
[1723997201125,1.94980464,59985.0,59984.0,0.0009075]
[1723997201333,1.96723558,59985.0,59984.0,0.0009075]
[1723997201547,1.98123558,59985.0,59984.0,0.0019075]
[1723997201970,1.96723558,59985.0,59984.0,0.0009075]
[1723997202173,1.94980464,59985.0,59984.0,0.0009075]
[1723997202379,1.94980464,59985.0,59984.0,0.0019075]
[1723997202380,1.95880464,59985.0,59984.0,0.0019075]
[1723997202580,1.95180464,59985.0,59984.0,0.0009075]
[1723997203046,1.91717023,59985.0,59984.0,0.0019075]
[1723997203262,1.90417023,59985.0,59984.0,0.0009075]
[1723997203470,1.91817023,59985.0,59984.0,0.0019075]
[1723997203615,1.92717023,59985.0,59984.0,0.0029075]
[1723997204414,1.91817023,59985.0,59984.0,0.0019075]
[1723997204612,1.90417023,59985.0,59984.0,0.0009075]
[1723997204818,1.91417023,59985.0,59984.0,0.0019075]
[1723997205851,1.92717023,59985.0,59984.0,0.0029075]
[1723997206058,1.91417023,59985.0,59984.0,0.0019075]
[1723997206449,1.91417023,59985.0,59984.0,0.0029075]
[1723997206450,1.92317023,59985.0,59984.0,0.0029075]
[1723997209861,1.835459,59985.0,59984.0,0.0029075]
[1723997210037,1.836459,59985.0,59984.0,0.0029075]
[1723997210662,1.838459,59985.0,59984.0,0.0029075]
[1723997210855,1.836459,59985.0,59984.0,0.0029075]
[1723997211463,1.839459,59985.0,59984.0,0.0029075]
[1723997211669,2.01101354,59985.0,59984.0,0.0029075]
[1723997212285,2.01001354,59985.0,59984.0,0.0029075]
[1723997212466,2.00801354,59985.0,59984.0,0.0029075]
[1723997212889,0.005,59980.0,59977.0,0.009075]
[1723997213120,0.354127,59978.0,59977.0,0.009075]
[1723997213390,1.823781,59978.0,59977.0,0.009075]
[1723997214751,1.833781,59978.0,59977.0,0.011075]
[1723997214992,1.843781,59978.0,59977.0,0.011075]
[1723997215707,1.842781,59978.0,59977.0,0.011075]
[1723997216363,2.01433554,59978.0,59977.0,0.011075]
[1723997217340,2.06296995,59978.0,59977.0,0.011075]
[1723997217568,2.14065918,59978.0,59977.0,0.011075]
[1723997217867,2.15809012,59978.0,59977.0,0.011075]
[1723997218341,2.15609012,59978.0,59977.0,0.011075]
[1723997219583,1.93890117,59978.0,59977.0,0.011075]
[1723997220204,1.92990117,59978.0,59977.0,0.010075]
[1723997220415,1.92890117,59978.0,59977.0,0.010075]
[1723997220641,1.92790117,59978.0,59977.0,0.009075]
[1723997221094,1.93690117,59978.0,59977.0,0.009075]
[1723997221326,1.92790117,59978.0,59977.0,0.009075]
[1723997221569,1.91890117,59978.0,59977.0,0.009075]
[1723997221807,1.93790117,59978.0,59977.0,0.009075]
[1723997222036,1.92790117,59978.0,59977.0,0.009075]
[1723997222266,1.91690117,59978.0,59977.0,0.009075]
[1723997223044,1.91690117,59978.0,59977.0,0.071775]
[1723997223045,1.52220719,59978.0,59977.0,0.071775]
[1723997223293,1.44451796,59978.0,59977.0,0.154975]
[1723997223516,1.45551796,59978.0,59977.0,0.154975]
[1723997224190,1.20077594,59978.0,59977.0,0.154975]
[1723997224420,0.716509,59978.0,59977.0,0.154975]
[1723997224673,0.964927,59978.0,59977.0,0.154975]
[1723997224938,0.957927,59978.0,59977.0,0.154975]
[1723997225180,0.949927,59978.0,59977.0,0.154975]
[1723997225601,0.950927,59978.0,59977.0,0.154975]
[1723997226017,1.184345,59978.0,59977.0,0.154975]
[1723997226283,1.0770997,59978.0,59977.0,0.154975]
[1723997226503,1.417763,59978.0,59977.0,0.009075]
[1723997226985,1.416763,59978.0,59977.0,0.009075]
[1723997229375,1.4954925,59978.0,59977.0,0.009075]
[1723997229599,1.66704704,59978.0,59977.0,0.009075]
[1723997230992,1.69004704,59978.0,59977.0,0.009075]
[1723997231239,1.77004704,59978.0,59977.0,0.009075]
[1723997231471,1.77204704,59978.0,59977.0,0.009075]
[1723997231971,2.00546504,59978.0,59977.0,0.009075]
[1723997232207,1.77204704,59978.0,59977.0,0.009075]
[1723997232695,1.77504704,59978.0,59977.0,0.009075]
[1723997232928,2.00846504,59978.0,59977.0,0.009075]
[1723997233205,1.77504704,59978.0,59977.0,0.009075]
[1723997233634,1.77604704,59978.0,59977.0,0.009075]
[1723997233842,1.5234925,59978.0,59977.0,0.009075]
[1723997234675,1.5224925,59978.0,59977.0,0.009075]
[1723997235082,1.5264925,59978.0,59977.0,0.009075]
[1723997235284,1.5234925,59978.0,59977.0,0.009075]
[1723997235927,1.5194925,59978.0,59977.0,0.009075]
[1723997236129,1.5224925,59978.0,59977.0,0.009075]
[1723997236342,1.5194925,59978.0,59977.0,0.009075]
[1723997236777,1.5224925,59978.0,59977.0,0.009075]
[1723997237007,1.5264925,59978.0,59977.0,0.009075]
[1723997237218,1.5254925,59978.0,59977.0,0.009075]
[1723997237427,1.5204925,59978.0,59977.0,0.009075]
[1723997237829,1.5254925,59978.0,59977.0,0.009075]
[1723997238037,1.5224925,59978.0,59977.0,0.009075]
[1723997238242,1.5174925,59978.0,59977.0,0.009075]
[1723997238465,1.5214925,59978.0,59977.0,0.009075]
[1723997238676,1.5004925,59978.0,59977.0,0.090375]
[1723997239086,1.5024925,59978.0,59977.0,0.090375]
[1723997239967,1.4944925,59978.0,59977.0,0.090375]
[1723997240428,1.4974925,59978.0,59977.0,0.090375]
[1723997240915,1.4944925,59978.0,59977.0,0.090375]
[1723997241159,1.4944925,59978.0,59977.0,0.156275]
[1723997241408,1.4954925,59978.0,59977.0,0.156275]
[1723997243172,1.4954925,59978.0,59977.0,0.009075]
[1723997244887,1.66704704,59978.0,59977.0,0.009075]
[1723997245640,1.4954925,59978.0,59977.0,0.009075]
[1723997247335,1.4954925,59978.0,59977.0,0.156275]
[1723997250258,1.4944925,59978.0,59977.0,0.156275]
[1723997252499,1.5753925,59978.0,59977.0,0.156275]
[1723997253320,1.5763925,59978.0,59977.0,0.156275]
[1723997265869,0.5785295,59978.0,59977.0,0.156275]
[1723997266080,0.6952385,59978.0,59977.0,0.156275]
[1723997266507,0.617509,59978.0,59977.0,0.156275]
[1723997266716,0.617509,59978.0,59977.0,0.16209818]
[1723997266926,0.850927,59978.0,59977.0,0.16209818]
[1723997267131,0.849927,59978.0,59977.0,0.16209818]
[1723997267365,0.616509,59978.0,59977.0,0.16209818]
[1723997267548,0.850927,59978.0,59977.0,0.16209818]
[1723997267771,0.850927,59978.0,59977.0,0.156275]
[1723997267772,0.851927,59978.0,59977.0,0.156275]
[1723997269131,0.850927,59978.0,59977.0,0.16209335]
[1723997269560,0.850927,59978.0,59977.0,0.156275]
[1723997269561,0.92967568,59978.0,59977.0,0.156275]
[1723997269770,1.16309368,59978.0,59977.0,0.156275]
[1723997270023,1.16209368,59978.0,59977.0,0.156275]
[1723997270263,1.16109368,59978.0,59977.0,0.156275]
[1723997270453,1.084345,59978.0,59977.0,0.156275]
[1723997270653,1.085345,59978.0,59977.0,0.157275]
[1723997271111,1.084345,59978.0,59977.0,0.157275]
[1723997271852,1.083345,59978.0,59977.0,0.156275]
[1723997272265,1.084345,59978.0,59977.0,0.156275]
[1723997272875,1.085345,59978.0,59977.0,0.156275]
[1723997287516,1.318763,59978.0,59977.0,0.156275]
[1723997287748,1.318763,59978.0,59977.0,0.009075]
[1723997287961,1.47611377,59978.0,59977.0,0.009075]
[1723997288604,1.73953177,59978.0,59977.0,0.009075]
[1723997288822,1.90183177,59978.0,59977.0,0.009075]
[1723997289064,1.90083177,59978.0,59977.0,0.009075]
[1723997289281,2.07238631,59978.0,59977.0,0.009075]
[1723997289519,2.07538631,59978.0,59977.0,0.009075]
[1723997289728,2.07138631,59978.0,59977.0,0.009075]
[1723997289939,2.09538631,59978.0,59977.0,0.009075]
[1723997290157,2.09638631,59978.0,59977.0,0.009075]
[1723997291626,2.09438631,59978.0,59977.0,0.009075]
[1723997291808,2.11038631,59978.0,59977.0,0.009075]
[1723997292468,2.22745355,59978.0,59977.0,0.009075]
[1723997292898,2.23545355,59978.0,59977.0,0.009075]
[1723997294416,2.23541985,59978.0,59977.0,0.009075]
[1723997295364,2.11038631,59978.0,59977.0,0.009075]
[1723997295570,2.34580431,59978.0,59977.0,0.009075]
[1723997295782,2.47383785,59978.0,59977.0,0.009075]
[1723997295980,2.47283785,59978.0,59977.0,0.009075]
[1723997296185,2.34880431,59978.0,59977.0,0.009075]
[1723997296389,2.47380603,59978.0,59977.0,0.009075]
[1723997296585,2.46580603,59978.0,59977.0,0.009075]
[1723997296786,2.45780603,59978.0,59977.0,0.009075]
[1723997298102,2.46980603,59978.0,59977.0,0.009075]
[1723997298330,2.34480431,59978.0,59977.0,0.009075]
[1723997298579,2.33280431,59978.0,59977.0,0.009075]
[1723997298803,2.34580431,59978.0,59977.0,0.009075]
[1723997299231,2.35880431,59978.0,59977.0,0.009075]
[1723997299441,2.37280431,59978.0,59977.0,0.009075]
[1723997300288,2.47275836,59978.0,59977.0,0.009075]
[1723997303047,2.37280431,59978.0,59977.0,0.009075]
[1723997303273,2.37180431,59978.0,59977.0,0.009075]
[1723997303463,2.37280431,59978.0,59977.0,0.009075]
[1723997303678,2.37280431,59978.0,59971.0,0.009075]
[1723997303679,1.143389,59972.0,59971.0,0.009075]
[1723997303884,1.98233977,59972.0,59971.0,0.009075]
[1723997304325,1.98333977,59972.0,59971.0,0.009075]
[1723997304546,2.00733977,59972.0,59971.0,0.009075]
[1723997304948,2.05730284,59972.0,59971.0,0.009075]
[1723997305153,2.06430284,59972.0,59971.0,0.009075]
[1723997305419,2.22650593,59972.0,59971.0,0.009075]
[1723997305616,2.22650593,59972.0,59970.0,0.009075]
[1723997305617,1.334007,59971.0,59970.0,0.009075]
[1723997305856,2.03155777,59971.0,59970.0,0.009075]
[1723997306303,2.10648911,59971.0,59970.0,0.009075]
[1723997306953,2.11148911,59971.0,59970.0,0.009075]
[1723997307172,2.34493511,59971.0,59970.0,0.009075]
[1723997307371,2.34793511,59971.0,59970.0,0.009075]
[1723997307602,2.27200377,59971.0,59970.0,0.009075]
[1723997307807,2.27300377,59971.0,59970.0,0.009075]
[1723997308053,2.35293511,59971.0,59970.0,0.009075]
[1723997308483,2.32893429,59971.0,59970.0,0.009075]
[1723997308685,2.32793429,59971.0,59970.0,0.009075]
[1723997308887,2.32893429,59971.0,59970.0,0.009075]
[1723997309092,2.48324014,59971.0,59970.0,0.009075]
[1723997309268,2.43330962,59971.0,59970.0,0.009075]
[1723997310490,2.48322617,59971.0,59970.0,0.009075]
[1723997310719,2.48322704,59971.0,59970.0,0.009075]
[1723997310962,2.43330962,59971.0,59970.0,0.009075]
[1723997311892,2.44229808,59971.0,59970.0,0.009075]
[1723997312096,2.44329808,59971.0,59970.0,0.009075]
[1723997312355,2.44229808,59971.0,59970.0,0.009075]
[1723997313403,2.44329808,59971.0,59970.0,0.009075]
[1723997314441,2.44229808,59971.0,59970.0,0.009075]
[1723997314648,2.44329808,59971.0,59970.0,0.009075]
[1723997315263,2.20985208,59971.0,59970.0,0.009075]
[1723997317941,2.20685208,59971.0,59970.0,0.009075]
[1723997318353,2.2567612,59971.0,59970.0,0.009075]
[1723997318567,2.20685208,59971.0,59970.0,0.009075]
[1723997320213,2.2567612,59971.0,59970.0,0.009075]
[1723997320628,2.20685208,59971.0,59970.0,0.009075]
[1723997321036,2.20985208,59971.0,59970.0,0.009075]
[1723997321246,2.20885208,59971.0,59970.0,0.009075]
[1723997322065,2.20685208,59971.0,59970.0,0.009075]
[1723997322271,2.2567612,59971.0,59970.0,0.009075]
[1723997323318,2.2595862,59971.0,59970.0,0.009075]
[1723997323723,2.27701714,59971.0,59970.0,0.009075]
[1723997323925,2.27501714,59971.0,59970.0,0.009075]
[1723997324331,2.22510802,59971.0,59970.0,0.009075]
[1723997324578,2.27503936,59971.0,59970.0,0.009075]
[1723997324789,2.22510802,59971.0,59970.0,0.009075]
[1723997324996,2.22710802,59971.0,59970.0,0.009075]
[1723997325204,2.27503977,59971.0,59970.0,0.009075]
[1723997325403,2.22510802,59971.0,59970.0,0.009075]
[1723997325832,2.22710802,59971.0,59970.0,0.009075]
[1723997326050,2.22510802,59971.0,59970.0,0.009075]
[1723997327455,2.30001523,59971.0,59970.0,0.009075]
[1723997328206,2.22510802,59971.0,59970.0,0.009075]
[1723997329280,2.3249843,59971.0,59970.0,0.009075]
[1723997329887,2.3269843,59971.0,59970.0,0.009075]
[1723997330087,2.3249843,59971.0,59970.0,0.009075]
[1723997330226,2.58639937,59971.0,59970.0,0.009075]
[1723997330430,2.58339937,59971.0,59970.0,0.009075]
[1723997330670,2.58349932,59971.0,59970.0,0.009075]
[1723997330876,2.45855402,59971.0,59970.0,0.009075]
[1723997331313,2.58349932,59971.0,59970.0,0.009075]
[1723997331510,2.58549932,59971.0,59970.0,0.009075]
[1723997331711,2.58649932,59971.0,59970.0,0.009075]
[1723997331987,2.58549932,59971.0,59970.0,0.009075]
[1723997332252,2.45955402,59971.0,59970.0,0.009075]
[1723997332463,2.46155402,59971.0,59970.0,0.009075]
[1723997332664,2.45855402,59971.0,59970.0,0.009075]
[1723997332892,2.46055402,59971.0,59970.0,0.009075]
[1723997333313,2.45855402,59971.0,59970.0,0.009075]
[1723997337614,2.60836844,59971.0,59970.0,0.009075]
[1723997337817,2.45855402,59971.0,59970.0,0.009075]
[1723997338465,1.080682,59961.0,59960.0,0.1401]
[1723997338668,1.89018345,59961.0,59960.0,0.1401]
[1723997339333,1.84013277,59961.0,59960.0,0.1401]
[1723997339941,1.84313277,59961.0,59960.0,0.1401]
[1723997340144,1.89318445,59961.0,59960.0,0.1401]
[1723997340347,1.84413277,59961.0,59960.0,0.1401]
[1723997340765,1.84313277,59961.0,59960.0,0.1401]
[1723997341105,1.85013277,59961.0,59960.0,0.1401]
[1723997341515,1.84713277,59961.0,59960.0,0.1401]
[1723997341714,1.84613277,59961.0,59960.0,0.1401]
[1723997342158,1.84013277,59961.0,59960.0,0.1401]
[1723997342363,1.91821029,59961.0,59960.0,0.1401]
[1723997342571,1.91721029,59961.0,59960.0,0.1401]
[1723997342778,1.91521029,59961.0,59960.0,0.1401]
[1723997343002,1.92521029,59961.0,59960.0,0.1401]
[1723997343256,1.92421029,59961.0,59960.0,0.1401]
[1723997343463,1.92021029,59961.0,59960.0,0.1401]
[1723997343671,1.92023582,59961.0,59960.0,0.1401]
[1723997343898,1.92523582,59961.0,59960.0,0.1401]
[1723997344103,1.92623582,59961.0,59960.0,0.1401]
[1723997344565,1.92123582,59961.0,59960.0,0.1401]
[1723997344792,1.91923582,59961.0,59960.0,0.1401]
[1723997345001,1.84413277,59961.0,59960.0,0.1401]
[1723997345180,1.84413277,59961.0,59960.0,0.061]
[1723997345700,1.94827017,59961.0,59960.0,0.061]
[1723997345888,1.85113277,59961.0,59960.0,0.061]
[1723997346440,1.94527017,59961.0,59960.0,0.061]
[1723997346649,1.98246541,59961.0,59960.0,0.0619075]
[1723997346857,1.77635545,59961.0,59960.0,0.0619075]
[1723997347069,1.85725545,59961.0,59960.0,0.0619075]
[1723997347273,1.85225545,59961.0,59960.0,0.0619075]
[1723997347446,1.85825545,59961.0,59960.0,0.0619075]
[1723997347876,1.98846863,59961.0,59960.0,0.0619075]
[1723997348076,1.98246863,59961.0,59960.0,0.0619075]
[1723997348314,1.98446913,59961.0,59960.0,0.0619075]
[1723997348512,1.98448314,59961.0,59960.0,0.0619075]
[1723997348718,2.01683461,59961.0,59960.0,0.0619075]
[1723997348922,1.88460692,59961.0,59960.0,0.0619075]
[1723997349095,1.88960692,59961.0,59960.0,0.0619075]
[1723997349534,1.88260692,59961.0,59960.0,0.0009075]
[1723997349685,1.90560692,59961.0,59960.0,0.0009075]
[1723997349894,1.91160692,59961.0,59960.0,0.0009075]
[1723997350499,1.90560692,59961.0,59960.0,0.0009075]
[1723997350701,1.91360692,59961.0,59960.0,0.0009075]
[1723997350904,1.90860692,59961.0,59960.0,0.0009075]
[1723997351259,1.90760692,59961.0,59960.0,0.0009075]
[1723997351635,1.91460692,59961.0,59960.0,0.0009075]
[1723997352168,1.91360692,59961.0,59960.0,0.0009075]
[1723997352344,1.91160692,59961.0,59960.0,0.0009075]
[1723997352587,1.90760692,59961.0,59960.0,0.0009075]
[1723997352775,1.90860692,59961.0,59960.0,0.0009075]
[1723997352984,1.90760692,59961.0,59960.0,0.0009075]
[1723997353149,1.91660692,59961.0,59960.0,0.0009075]
[1723997353962,1.90860692,59961.0,59960.0,0.0009075]
[1723997354364,1.91560692,59961.0,59960.0,0.0009075]
[1723997354563,1.90860692,59961.0,59960.0,0.0009075]
[1723997354762,1.91660692,59961.0,59960.0,0.0009075]
[1723997355264,1.91860692,59961.0,59960.0,0.0009075]
[1723997355498,1.91760692,59961.0,59960.0,0.0009075]
[1723997355900,1.90960692,59961.0,59960.0,0.0009075]
[1723997356151,1.91060692,59961.0,59960.0,0.0009075]
[1723997356461,1.91860692,59961.0,59960.0,0.0009075]
[1723997356667,1.91060692,59961.0,59960.0,0.0009075]
[1723997356868,1.90960692,59961.0,59960.0,0.0009075]
[1723997357061,1.91660692,59961.0,59960.0,0.0009075]
[1723997357498,0.820264,59956.0,59952.0,0.0622]
[1723997357707,0.820264,59956.0,59951.0,0.0799]
[1723997357708,0.38028,59952.0,59951.0,0.0002]
[1723997357905,1.50877077,59952.0,59951.0,0.0002]
[1723997358106,1.68385954,59952.0,59951.0,0.0002]
[1723997358826,1.60877077,59952.0,59951.0,0.0002]
[1723997359681,1.92732596,59952.0,59951.0,0.0002]
[1723997360660,1.92632596,59952.0,59951.0,0.0002]
[1723997361318,1.94932848,59952.0,59951.0,0.0002]
[1723997361952,1.94930878,59952.0,59951.0,0.0002]
[1723997362172,2.12386332,59952.0,59951.0,0.0002]
[1723997362672,1.85226686,59952.0,59951.0,0.0002]
[1723997363807,1.92727564,59952.0,59951.0,0.0002]
[1723997364035,1.92427564,59952.0,59951.0,0.0002]
[1723997364496,1.92727564,59952.0,59951.0,0.0002]
[1723997365705,1.92627564,59952.0,59951.0,0.0002]
[1723997365946,1.92727564,59952.0,59951.0,0.0002]
[1723997366181,2.12283018,59952.0,59951.0,0.0002]
[1723997366414,2.1934214,59952.0,59951.0,0.0002]
[1723997366646,2.1924214,59952.0,59951.0,0.0002]
[1723997366879,2.26540351,59952.0,59951.0,0.0002]
[1723997367104,2.1904214,59952.0,59951.0,0.0002]
[1723997367577,2.0578214,59952.0,59951.0,0.0002]
[1723997367813,2.12079634,59952.0,59951.0,0.0002]
[1723997368277,2.13479634,59952.0,59951.0,0.0002]
[1723997368541,2.14679634,59952.0,59951.0,0.0002]
[1723997369056,2.13179634,59952.0,59951.0,0.0002]
[1723997369260,2.14679634,59952.0,59951.0,0.0002]
[1723997369980,2.14579634,59952.0,59951.0,0.0002]
[1723997370186,2.14679634,59952.0,59951.0,0.0002]
[1723997370694,1.9752418,59952.0,59951.0,0.0002]
[1723997371204,1.97522695,59952.0,59951.0,0.0002]
[1723997371939,1.90026686,59952.0,59951.0,0.0002]
[1723997372298,1.95023859,59952.0,59951.0,0.0011075]
[1723997373703,1.97522695,59952.0,59951.0,0.0011075]
[1723997373904,2.0718214,59952.0,59951.0,0.0011075]
[1723997374104,2.14678149,59952.0,59951.0,0.0011075]
[1723997374313,2.0718214,59952.0,59951.0,0.0011075]
[1723997374514,2.14678149,59952.0,59951.0,0.0011075]
[1723997374716,2.0718214,59952.0,59951.0,0.0011075]
[1723997375146,2.17176819,59952.0,59951.0,0.0011075]
[1723997375755,2.171755,59952.0,59951.0,0.0011075]
[1723997376531,1.91530046,59952.0,59951.0,0.0668075]
[1723997376748,1.97122322,59952.0,59951.0,0.1498075]
[1723997376990,1.9462383,59952.0,59951.0,0.1498075]
[1723997379253,1.3442983,59952.0,59951.0,0.1498075]
[1723997379462,1.18435077,59952.0,59951.0,0.1498075]
[1723997379670,1.34012,59952.0,59951.0,0.1498075]
[1723997380070,1.32812,59952.0,59951.0,0.1498075]
[1723997380508,1.0836,59952.0,59951.0,0.1498075]
[1723997380706,1.0846,59952.0,59951.0,0.1498075]
[1723997380908,1.31712,59952.0,59951.0,0.1498075]
[1723997381466,1.32812,59952.0,59951.0,0.1498075]
[1723997381836,1.40211495,59952.0,59951.0,0.1498075]
[1723997382114,1.39111495,59952.0,59951.0,0.1498075]
[1723997388793,1.49111495,59952.0,59951.0,0.1498075]
[1723997388987,1.49111495,59952.0,59951.0,0.0668075]
[1723997389662,1.49411495,59952.0,59951.0,0.0668075]
[1723997389863,1.49411495,59952.0,59951.0,0.0011075]
[1723997390313,1.49611495,59952.0,59951.0,0.0011075]
[1723997390523,1.59072436,59952.0,59951.0,0.0011075]
[1723997390724,1.49411495,59952.0,59951.0,0.0011075]
[1723997390950,1.49711495,59952.0,59951.0,0.0011075]
[1723997391155,1.49411495,59952.0,59951.0,0.0011075]
[1723997391655,1.49811495,59952.0,59951.0,0.0011075]
[1723997393605,1.54810365,59952.0,59951.0,0.0011075]
[1723997393797,1.49811495,59952.0,59951.0,0.0011075]
[1723997394368,1.75663495,59952.0,59951.0,0.0011075]
[1723997395416,1.75263495,59952.0,59951.0,0.0011075]
[1723997395630,1.74963495,59952.0,59951.0,0.0011075]
[1723997396240,1.75463495,59952.0,59951.0,0.0011075]
[1723997396887,1.52511495,59952.0,59951.0,0.0011075]
[1723997397306,1.52511495,59952.0,59951.0,0.0790075]
[1723997397307,1.50011495,59952.0,59951.0,0.0790075]
[1723997397507,1.58101495,59952.0,59951.0,0.0790075]
[1723997398339,1.57201495,59952.0,59951.0,0.0790075]
[1723997398550,1.57701495,59952.0,59951.0,0.0790075]
[1723997401136,1.62705346,59952.0,59951.0,0.0790075]
[1723997401575,1.57701495,59952.0,59951.0,0.0790075]
[1723997401799,1.49611495,59952.0,59951.0,0.1442075]
[1723997402244,1.57701495,59952.0,59951.0,0.1442075]
[1723997403355,1.57501495,59952.0,59951.0,0.1442075]
[1723997403989,1.65009678,59952.0,59951.0,0.1442075]
[1723997404198,1.57201495,59952.0,59951.0,0.1442075]
[1723997404417,1.65206878,59952.0,59951.0,0.1442075]
[1723997404617,1.65206878,59952.0,59951.0,0.0011075]
[1723997404618,1.60301495,59952.0,59951.0,0.0011075]
[1723997405026,1.65306798,59952.0,59951.0,0.0011075]
[1723997405690,1.60301495,59952.0,59951.0,0.0011075]
[1723997406508,1.77456949,59952.0,59951.0,0.0011075]
[1723997406982,1.65306831,59952.0,59951.0,0.0011075]
[1723997407163,1.88858831,59952.0,59951.0,0.0011075]
[1723997407403,1.97808831,59952.0,59951.0,0.0011075]
[1723997407612,2.003115,59952.0,59951.0,0.0011075]
[1723997407818,2.000115,59952.0,59951.0,0.0011075]
[1723997408030,1.96164168,59952.0,59951.0,0.0011075]
[1723997408208,1.93561118,59952.0,59951.0,0.0011075]
[1723997408450,1.94061118,59952.0,59951.0,0.0011075]
[1723997408659,1.63101495,59952.0,59951.0,0.0011075]
[1723997408869,1.57116085,59952.0,59951.0,0.1442075]
[1723997409073,1.65206085,59952.0,59951.0,0.1442075]
[1723997409279,1.65806085,59952.0,59951.0,0.1442075]
[1723997409948,1.60801495,59952.0,59951.0,0.1442075]
[1723997410152,1.65806088,59952.0,59951.0,0.1442075]
[1723997410358,1.66206088,59952.0,59951.0,0.1442075]
[1723997410581,1.65606088,59952.0,59951.0,0.1442075]
[1723997410799,1.65706088,59952.0,59951.0,0.1442075]
[1723997411004,1.66006088,59952.0,59951.0,0.1442075]
[1723997411210,1.66006192,59952.0,59951.0,0.1442075]
[1723997412166,1.89358192,59952.0,59951.0,0.1442075]
[1723997412338,1.66006192,59952.0,59951.0,0.1442075]